bitfinex/quotes_ETHUSD_20241130
["timestamp","ask_amount","ask_price","bid_price","bid_amount"]
[1733000430568,2.69216,3714.5,3714.2,0.2]
[1733000431732,2.69228,3714.4,3714.2,0.2]
[1733000431934,2.69228,3714.4,3714.2,0.1]
[1733000433232,2.69249,3714.1,3713.8,1.6386]
[1733000433577,1.6464,3714.5,3713.5,1.6386]
[1733000433743,1.6464,3714.5,3713.7,0.1]
[1733000433744,2.6926,3713.9,3713.7,0.1]
[1733000434587,2.6926,3713.9,3713.5,1.6386]
[1733000434877,2.69267,3713.8,3713.5,0.1]
[1733000435041,2.69273,3713.7,3713.5,0.2]
[1733000435370,4.33899,3713.9,3713.5,0.1]
[1733000435676,2.69268,3713.8,3713.5,0.1]
[1733000435830,2.69273,3713.7,3713.5,0.1]
[1733000436032,2.69273,3713.7,3713.1,0.1]
[1733000436229,2.69293,3713.5,3713.0,2.2427]
[1733000436652,2.69295,3713.4,3713.1,0.1]
[1733000437187,1.6464,3713.9,3713.0,2.1427]
[1733000437188,2.69302,3713.3,3713.0,2.1427]
[1733000437338,0.48750367,3713.8,3713.0,2.1427]
[1733000437543,2.69316,3713.1,3713.0,0.6117]
[1733000438986,2.69316,3713.1,3713.0,0.7117]
[1733000439146,2.69316,3713.1,3713.0,0.6117]
[1733000439457,2.69316,3713.1,3713.0,0.7117]
[1733000439654,2.69302,3713.3,3713.0,0.7117]
[1733000440184,2.69312,3713.2,3713.0,0.6117]
[1733000440388,2.69316,3713.1,3713.0,0.6117]
[1733000440540,2.69316,3713.1,3712.5,2.6936]
[1733000440541,2.69367,3712.4,3712.2,0.320872]
[1733000440887,1.5666,3713.0,3711.9,0.1]
[1733000440888,2.69374,3712.3,3711.9,0.1]
[1733000441178,2.69374,3712.3,3711.7,1.531]
[1733000441179,2.69392,3712.1,3711.7,1.631]
[1733000441383,2.69392,3712.1,3711.7,0.2]
[1733000441384,2.69405,3711.9,3711.7,0.2]
[1733000441542,2.69405,3711.9,3711.7,0.1]
[1733000441742,1.5226,3712.2,3711.7,0.1]
[1733000441743,2.07421896,3712.2,3711.7,0.1]
[1733000442066,2.69399,3712.0,3711.7,0.1]
[1733000442270,0.55161896,3712.2,3712.1,0.1]
[1733000442481,0.538607,3713.1,3712.1,0.1]
[1733000442482,0.538607,3713.1,3712.3,1.517]
[1733000442678,2.69341,3712.8,3712.6,0.1]
[1733000443182,2.69345,3712.7,3712.6,0.1]
[1733000443353,2.69345,3712.7,3712.3,1.617]
[1733000443556,2.69367,3712.4,3712.1,0.1]
[1733000443761,2.69367,3712.4,3712.2,0.1]
[1733000443963,2.69353,3712.6,3712.2,0.1]
[1733000443964,2.69374,3712.3,3712.2,0.1]
[1733000444691,2.6935,3712.7,3712.1,0.1]
[1733000444891,2.69312,3713.2,3712.6,1.617]
[1733000445455,2.69295,3713.4,3712.6,1.617]
[1733000445803,2.69315,3713.2,3713.0,0.1]
[1733000445988,2.69316,3713.1,3713.0,0.1]
[1733000446292,4.21512,3714.0,3713.3,0.1]
[1733000446493,2.69271,3713.8,3713.3,0.1]
[1733000446800,3.24421662,3714.0,3713.7,0.1]
[1733000447007,2.69265,3713.8,3713.7,0.1]
[1733000447210,2.69287,3713.5,3713.2,0.1]
[1733000447359,2.69295,3713.4,3713.2,0.1]
[1733000448193,2.69295,3713.4,3712.9,3.0]
[1733000448194,1.5226,3713.7,3713.0,0.1]
[1733000448393,2.6932,3713.1,3712.8,1.517]
[1733000448698,1.5226,3713.7,3712.8,1.517]
[1733000448900,2.69316,3713.1,3712.8,1.517]
[1733000449105,1.5226,3713.7,3712.7,0.1]
[1733000449263,2.69315,3713.2,3713.0,0.1]
[1733000449968,2.69316,3713.1,3713.0,0.1]
[1733000450168,2.69316,3713.1,3712.7,0.1]
[1733000450372,2.69316,3713.1,3712.7,0.2]
[1733000450683,2.69346,3712.7,3712.5,1.617]
[1733000450889,2.69302,3713.3,3712.7,0.1]
[1733000451057,2.69318,3713.1,3712.9,0.1]
[1733000451581,2.69326,3713.0,3712.7,0.1]
[1733000452023,2.69332,3712.9,3712.7,0.1]
[1733000452220,2.69338,3712.8,3712.7,0.1]
[1733000452731,2.69347,3712.7,3712.5,1.617]
[1733000453519,2.69347,3712.7,3712.5,1.717]
[1733000455387,1.5226,3712.4,3710.3,2.69512]
[1733000455609,2.69443,3711.4,3710.4,2.6951]
[1733000455920,2.69415,3711.8,3710.9,1.517]
[1733000456239,2.69423,3711.7,3710.9,1.517]
[1733000456386,2.69423,3711.7,3710.9,4.21175]
[1733000456734,2.69404,3711.9,3710.9,4.21175]
[1733000456735,2.69409,3711.9,3710.9,4.21175]
[1733000456934,3.01695032,3711.9,3710.9,4.21175]
[1733000457149,0.32286032,3711.9,3710.9,1.517]
[1733000457429,2.69449,3711.3,3710.9,1.517]
[1733000457793,2.69441,3711.4,3710.9,1.517]
[1733000458624,2.69425,3711.7,3710.9,1.517]
[1733000458787,2.69425,3711.7,3710.9,4.21175]
[1733000459590,2.69425,3711.7,3711.0,2.69466]
[1733000459929,2.69392,3712.1,3711.0,2.69466]
[1733000460098,3.28619032,3712.0,3711.0,2.69466]
[1733000460429,2.69414,3711.8,3710.9,1.517]
[1733000460726,0.59222032,3712.0,3711.1,2.69461]
[1733000461095,1.5083,3711.9,3710.9,4.21175]
[1733000461308,2.95760336,3711.9,3710.9,4.21175]
[1733000461631,0.26350336,3711.9,3711.1,2.69461]
[1733000461803,0.26350336,3711.9,3711.0,2.69466]
[1733000462523,0.26350336,3711.9,3710.9,1.517]
[1733000462524,0.26350336,3711.9,3711.1,2.69461]
[1733000462701,0.26350336,3711.9,3710.9,1.517]
[1733000462702,0.26350336,3711.9,3711.2,2.69454]
[1733000462885,0.26350336,3711.9,3711.0,2.69463]
[1733000463081,0.26350336,3711.9,3710.9,4.21176]
[1733000463299,0.26350336,3711.9,3711.1,2.69457]
[1733000463983,2.95755336,3711.9,3710.9,4.21172]
[1733000464193,3.25928534,3711.8,3710.9,1.517]
[1733000464426,2.6942,3711.7,3710.9,1.517]
[1733000464724,3.25928534,3711.8,3710.9,1.517]
[1733000464930,0.56514534,3711.8,3711.0,2.69466]
[1733000465084,0.56514534,3711.8,3710.9,1.517]
[1733000465085,0.56514534,3711.8,3711.1,2.69459]
[1733000465291,0.26350336,3711.9,3711.3,2.69444]
[1733000465737,0.26350336,3711.9,3711.1,2.69459]
[1733000466025,2.04281323,3712.2,3711.5,1.6331]
[1733000466227,1.19022271,3712.5,3711.5,1.6331]
[1733000466526,1.19022271,3712.5,3712.3,4.32678]
[1733000467695,1.19022271,3712.5,3712.4,2.69367]
[1733000469134,4.22152,3713.2,3712.5,2.69355]
[1733000469294,0.47508412,3713.1,3712.5,2.69355]
[1733000470297,0.47508412,3713.1,3712.6,2.69351]
[1733000471036,0.47508412,3713.1,3712.4,2.69363]
[1733000472038,3.16826412,3713.1,3712.4,2.69363]
[1733000472939,0.47508412,3713.1,3712.4,2.69363]
[1733000473124,3.16291041,3713.0,3712.4,2.69363]
[1733000474336,4.22199,3712.6,3711.9,4.32708]
[1733000475634,1.5284,3712.6,3712.0,2.69391]
[1733000475839,2.69346,3712.7,3712.0,2.69391]
[1733000475999,3.70717188,3712.7,3712.0,2.69391]
[1733000476510,3.16261104,3712.7,3712.0,2.69391]
[1733000476915,2.69365,3712.5,3711.9,1.6331]
[1733000477127,0.99673478,3712.7,3710.2,0.38145332]
[1733000477128,2.69395,3712.1,3711.3,2.69442]
[1733000477429,2.69395,3712.1,3711.2,1.5291]
[1733000477430,2.69382,3712.2,3711.2,4.22363]
[1733000477627,2.69404,3711.9,3711.2,4.22363]
[1733000478843,1.6551,3711.7,3710.9,1.5291]
[1733000479041,4.34913,3712.0,3711.2,2.69453]
[1733000479341,2.69403,3711.9,3710.9,4.22385]
[1733000479510,2.69423,3711.7,3710.9,4.22385]
[1733000479715,2.69428,3711.6,3710.9,4.22385]
[1733000480334,1.6551,3712.0,3711.0,2.69469]
[1733000480536,0.22055355,3711.9,3710.9,1.5291]
[1733000480740,2.69426,3711.6,3710.9,1.5291]
[1733000480900,2.69426,3711.6,3710.9,4.22386]
[1733000482166,2.69429,3711.6,3710.9,1.5291]
[1733000482454,2.69429,3711.6,3710.9,4.22385]
[1733000483647,2.69418,3711.7,3710.9,4.22385]
[1733000483834,2.6944,3711.4,3710.9,1.5291]
[1733000484339,2.69447,3711.3,3710.9,1.5291]
[1733000484539,2.69447,3711.3,3710.6,1.5355]
[1733000485062,2.69471,3711.0,3710.6,1.5355]
[1733000485236,4.72007336,3711.7,3710.7,2.69487]
[1733000485434,2.69441,3711.4,3710.7,2.69487]
[1733000485621,2.69441,3711.4,3710.8,2.69482]
[1733000485948,2.69441,3711.4,3710.6,4.23044]
[1733000486253,2.69448,3711.3,3710.6,4.23044]
[1733000486760,2.69463,3711.1,3710.6,1.5355]
[1733000487268,2.69469,3711.0,3710.6,1.5355]
[1733000487620,2.69469,3711.0,3710.4,0.28154122]
[1733000488356,4.74101591,3711.4,3710.5,2.69504]
[1733000488530,2.69447,3711.3,3710.6,2.69492]
[1733000488940,2.69455,3711.2,3710.6,2.69492]
[1733000490226,4.72820786,3711.4,3710.4,2.97662122]
[1733000490564,2.6946,3711.2,3710.4,2.97662122]
[1733000490721,2.6946,3711.2,3710.5,2.69504]
[1733000491566,2.69462,3711.1,3710.5,2.69504]
[1733000492763,2.69462,3711.1,3710.4,0.28154122]
[1733000493621,2.69468,3711.1,3710.4,0.28154122]
[1733000494159,2.69477,3710.9,3710.4,0.28154122]
[1733000494729,2.69477,3710.9,3710.3,1.572]
[1733000497466,2.69477,3710.9,3710.3,4.26718]
[1733000499168,0.74229579,3711.1,3710.3,1.572]
[1733000499348,2.6947,3711.0,3710.4,2.69511]
[1733000499749,2.6947,3711.0,3710.3,1.572]
[1733000499925,2.6947,3711.0,3710.3,4.26719]
[1733000500965,2.6947,3711.0,3710.4,2.69511]
[1733000502560,2.6947,3711.0,3710.3,1.572]
[1733000505040,0.74229579,3711.1,3710.3,1.572]
[1733000505366,2.69477,3710.9,3710.3,1.572]
[1733000505751,2.69477,3710.9,3709.4,3.0]
[1733000505752,1.6551,3710.9,3709.8,1.5298]
[1733000505956,2.69503,3710.6,3709.8,1.5298]
[1733000506169,2.6949,3710.7,3709.8,1.5298]
[1733000506366,1.6551,3710.9,3709.8,4.22529]
[1733000506367,3.12998,3710.6,3709.8,4.22529]
[1733000506951,2.69507,3710.5,3709.8,1.5298]
[1733000507152,2.69507,3710.5,3709.8,4.22535]
[1733000507765,0.53469937,3710.5,3709.8,4.22535]
[1733000509369,0.53469937,3710.5,3709.9,1.5298]
[1733000509700,0.22055355,3711.9,3710.7,2.6949]
[1733000509701,2.43342812,3711.5,3710.7,2.6949]
[1733000509871,2.69424,3711.7,3710.8,1.5298]
[1733000511291,2.69424,3711.7,3711.0,2.69468]
[1733000512178,0.54067171,3711.9,3711.1,1.5298]
[1733000512385,2.69353,3712.6,3711.8,1.5298]
[1733000512603,0.25212022,3712.6,3711.8,1.5298]
[1733000512826,3.86499735,3712.8,3712.1,2.69383]
[1733000512827,1.17160735,3712.8,3712.1,2.69383]
[1733000513252,1.17160735,3712.8,3712.3,4.2235]
[1733000514185,1.82741309,3712.8,3712.3,1.5298]
[1733000514387,2.69345,3712.7,3712.3,1.5298]
[1733000515488,2.69358,3712.6,3711.9,1.5298]
[1733000515687,2.69358,3712.6,3711.9,4.22383]
[1733000515914,2.69345,3712.7,3712.0,2.69396]
[1733000516808,1.17160735,3712.8,3711.9,1.5298]
[1733000517013,2.69353,3712.6,3711.9,2.252192]
[1733000517314,3.86502735,3712.8,3712.0,2.69394]
[1733000520623,2.69354,3712.6,3711.9,2.252192]
[1733000520780,3.86502735,3712.8,3711.9,2.252192]
[1733000520781,3.86502735,3712.8,3712.0,2.69396]
[1733000521182,3.86502735,3712.8,3712.1,2.69388]
[1733000521382,3.86502735,3712.8,3712.1,3.4578832]
[1733000521817,1.17160735,3712.8,3712.1,0.7640032]
[1733000521983,1.17160735,3712.8,3712.2,2.69379]
[1733000522852,1.17160735,3712.8,3712.1,0.7640032]
[1733000523434,3.86500735,3712.8,3712.1,0.7640032]
[1733000523738,3.86500735,3712.8,3712.0,2.69396]
[1733000525116,1.17160735,3712.8,3712.1,2.69387]
[1733000525350,1.17160735,3712.8,3712.4,2.69361]
[1733000525650,1.17160735,3712.8,3712.5,2.69354]
[1733000526264,1.17160735,3712.8,3712.6,2.69352]
[1733000526568,1.17160735,3712.8,3712.4,2.69367]
[1733000527362,1.17160735,3712.8,3712.4,3.114397]
[1733000527524,1.17160735,3712.8,3712.7,2.69345]
[1733000528233,0.53960682,3713.2,3712.7,2.69345]
[1733000530051,0.53960682,3713.2,3712.5,4.2072]
[1733000531078,2.69332,3712.9,3712.1,5.69382]
[1733000531284,2.69332,3712.9,3712.2,1.5136]
[1733000531606,2.69332,3712.9,3712.2,4.2074]
[1733000531937,2.69332,3712.9,3712.2,1.5136]
[1733000532142,2.69353,3712.6,3712.2,1.5136]
[1733000532390,2.69353,3712.6,3711.8,2.6941]
[1733000532391,2.69353,3712.6,3711.9,4.5136]
[1733000532673,2.69346,3712.7,3711.9,4.5136]
[1733000532889,4.32737,3712.4,3711.6,4.20785]
[1733000533062,2.69376,3712.3,3711.6,4.20785]
[1733000533636,2.69383,3712.2,3711.6,1.5136]
[1733000535898,2.69385,3712.2,3711.6,1.5136]
[1733000536098,2.69397,3712.0,3711.6,1.5136]
[1733000536394,2.69397,3712.0,3711.3,1.5953]
[1733000536552,2.69397,3712.0,3711.0,2.28953567]
[1733000536553,2.69414,3711.8,3711.1,2.69461]
[1733000539166,2.69383,3712.2,3711.1,2.69461]
[1733000539363,2.69383,3712.2,3711.2,2.69449]
[1733000539364,2.69397,3712.0,3711.2,2.69449]
[1733000539686,2.69405,3711.9,3711.2,2.69449]
[1733000541474,2.69405,3711.9,3711.2,3.692937]
[1733000545199,2.69411,3711.8,3711.0,4.28998]
[1733000546039,2.69405,3711.9,3711.1,2.69457]
[1733000546484,2.69405,3711.9,3711.2,2.69451]
[1733000546682,2.69398,3712.0,3711.0,4.28998]
[1733000547527,2.69398,3712.0,3711.2,2.69452]
[1733000547692,2.69404,3711.9,3711.2,2.69452]
[1733000549635,2.69404,3711.9,3711.0,4.28998]
[1733000549636,2.69413,3711.8,3711.0,1.5953]
[1733000549793,2.963543,3711.8,3711.0,4.28997]
[1733000550000,2.69434,3711.5,3711.0,1.5953]
[1733000550301,2.69441,3711.4,3710.7,1.6222]
[1733000550533,1.6308,3711.7,3710.7,1.6222]
[1733000550832,0.55,3711.6,3710.7,1.6222]
[1733000551133,0.2450213,3711.5,3710.4,1.6222]
[1733000551286,2.69486,3710.8,3710.4,1.6222]
[1733000552190,0.54009038,3711.3,3710.1,4.31753]
[1733000552191,2.69492,3710.7,3710.1,4.31753]
[1733000552595,0.54009038,3711.3,3710.1,4.31753]
[1733000552596,2.69476,3710.9,3710.2,2.69526]
[1733000553358,0.54009038,3711.3,3710.1,1.6222]
[1733000553517,2.69487,3710.8,3710.1,4.31752]
[1733000554019,2.69469,3711.0,3710.1,4.31752]
[1733000554218,2.69491,3710.7,3710.1,4.31752]
[1733000554758,2.69491,3710.7,3710.1,1.6222]
[1733000555255,2.69498,3710.6,3709.9,2.5269]
[1733000555431,2.69517,3710.4,3709.9,2.5269]
[1733000557342,2.69541,3710.0,3709.9,1.55641569]
[1733000557526,2.69569,3709.7,3709.1,1.5646]
[1733000557738,2.69577,3709.6,3709.1,1.5646]
[1733000558524,2.69579,3709.5,3709.1,1.5646]
[1733000558932,2.69573,3709.6,3709.1,1.5646]
[1733000559137,0.55,3710.2,3709.1,1.5646]
[1733000559471,2.69584,3709.5,3709.1,1.5646]
[1733000560021,2.69564,3709.7,3709.1,1.5646]
[1733000560324,0.45054357,3710.1,3706.8,0.00261507]
[1733000560325,2.69591,3709.4,3708.5,2.69649]
[1733000560550,2.69593,3709.3,3708.5,2.69649]
[1733000560749,2.69593,3709.3,3708.6,0.269649]
[1733000561159,2.69593,3709.3,3708.5,2.69649]
[1733000561488,2.69581,3709.5,3708.6,2.69639]
[1733000561706,2.69588,3709.4,3708.6,2.69639]
[1733000562247,2.696,3709.2,3708.4,2.69651]
[1733000563250,2.69599,3709.3,3708.5,2.69645]
[1733000563574,2.69599,3709.3,3708.3,2.69665]
[1733000563575,2.69557,3709.8,3709.0,2.69607]
[1733000563776,2.69557,3709.8,3708.3,5.01537114]
[1733000563777,2.69557,3709.8,3709.2,1.6355]
[1733000563978,2.69557,3709.8,3709.1,2.69604]
[1733000564145,2.69571,3709.6,3708.9,1.6355]
[1733000565180,0.701869,3709.7,3708.9,4.33166]
[1733000565360,3.397499,3709.7,3709.0,2.69612]
[1733000565565,0.701869,3709.7,3709.0,2.69612]
[1733000566294,2.69557,3709.8,3709.0,2.69612]
[1733000566794,2.69557,3709.8,3709.1,2.69604]
[1733000566954,3.23123917,3710.0,3709.2,2.69597]
[1733000567155,0.45054357,3710.1,3709.5,1.6355]
[1733000567779,3.14588357,3710.1,3709.5,1.6355]
[1733000568690,0.45054357,3710.1,3709.5,1.6355]
[1733000568934,0.5409342,3710.2,3709.5,1.6355]
[1733000569098,2.69534,3710.1,3709.5,1.6355]
[1733000569431,2.69557,3709.8,3709.1,1.5257]
[1733000570218,2.69563,3709.7,3709.1,4.22174]
[1733000570745,2.69554,3709.9,3709.2,2.69599]
[1733000571032,2.69554,3709.9,3709.2,0.39037364]
[1733000571329,2.69554,3709.9,3709.2,2.69599]
[1733000571530,2.69557,3709.8,3709.2,2.69599]
[1733000571736,2.69557,3709.8,3709.1,1.5257]
[1733000571904,2.69541,3710.0,3709.1,1.5257]
[1733000572105,2.69564,3709.7,3709.1,1.5257]
[1733000573018,2.69535,3710.1,3709.2,5.39193]
[1733000573335,2.69535,3710.1,3709.2,2.69594]
[1733000573534,3.2362242,3710.2,3709.4,2.69579]
[1733000573837,3.99212962,3710.2,3709.4,2.69579]
[1733000574200,2.69536,3710.1,3709.4,2.69579]
[1733000574397,2.6951,3710.5,3709.7,1.5257]
[1733000574608,2.6951,3710.5,3709.7,4.22128]
[1733000575110,2.6951,3710.5,3709.8,2.69555]
[1733000575293,0.7547988,3710.4,3709.8,2.69555]
[1733000575497,2.7815258,3710.6,3709.8,2.69555]
[1733000575736,1.1625258,3710.6,3709.9,2.69549]
[1733000575926,1.1625258,3710.6,3710.0,2.6954]
[1733000578529,1.6468,3710.5,3709.8,2.69553]
[1733000578704,4.62279258,3710.5,3709.8,2.69553]
[1733000578899,1.92773258,3710.5,3709.8,2.69553]
[1733000579104,2.69513,3710.4,3709.8,2.69553]
[1733000579352,2.69513,3710.4,3709.7,4.22127]
[1733000580347,2.69525,3710.3,3709.7,1.5257]
[1733000580557,0.84806384,3710.3,3709.7,1.5257]
[1733000580909,0.84806384,3710.3,3709.4,1.5571]
[1733000581113,2.69535,3710.1,3709.1,2.69603]
[1733000581345,2.69556,3709.9,3709.1,2.69603]
[1733000581554,2.69569,3709.7,3709.0,4.25323]
[1733000581770,2.69571,3709.6,3709.0,4.25323]
[1733000582546,1.523,3709.7,3709.0,4.25323]
[1733000582884,2.214415,3709.7,3709.0,4.25323]
[1733000583039,4.910055,3709.7,3709.1,2.69607]
[1733000585259,2.69577,3709.6,3708.8,2.69628]
[1733000585430,2.69586,3709.4,3708.7,1.5571]
[1733000585633,2.69593,3709.3,3708.7,1.5571]
[1733000586333,2.69609,3709.1,3708.4,2.69657]
[1733000586528,2.69615,3709.0,3708.4,1.5913]
[1733000586733,1.6084,3709.0,3708.4,1.5913]
[1733000586935,4.30457,3709.0,3708.4,4.28786]
[1733000587140,4.30457,3709.0,3708.2,2.69671]
[1733000587141,2.69622,3708.9,3708.2,2.69671]
[1733000588186,2.69622,3708.9,3708.1,1.5913]
[1733000588353,2.69614,3709.0,3708.3,2.6966]
[1733000589051,2.69625,3708.9,3708.2,2.69665]
[1733000589380,2.69601,3709.2,3708.2,2.69665]
[1733000589381,0.55,3709.2,3708.2,2.69665]
[1733000589549,2.69636,3708.7,3708.1,4.28807]
[1733000589758,1.5259,3708.7,3708.0,306.71295067]
[1733000589965,1.5259,3708.7,3708.1,2.69678]
[1733000591044,4.22226,3708.7,3708.1,2.69678]
[1733000592245,4.22226,3708.7,3708.0,301.31928067]
[1733000592483,4.22226,3708.7,3708.0,304.01609067]
[1733000592682,1.5259,3708.7,3708.0,304.01609067]
[1733000593284,1.5259,3708.7,3708.1,2.69679]
[1733000593664,4.22227,3708.7,3708.1,2.69679]
[1733000594406,2.217742,3708.7,3708.0,301.31928067]
[1733000594604,0.55,3708.6,3708.0,304.01609067]
[1733000594759,0.55,3708.9,3708.1,1.5097]
[1733000595100,0.55,3708.9,3708.3,2.69664]
[1733000595270,3.24623,3708.9,3708.3,2.69664]
[1733000595696,2.6963,3708.8,3708.1,1.5097]
[1733000596188,0.55,3708.9,3708.1,1.5097]
[1733000596361,2.69629,3708.8,3708.1,4.20645]
[1733000596564,2.69629,3708.8,3708.1,6.93228547]
[1733000596761,2.69629,3708.8,3708.2,2.6967]
[1733000597864,2.69637,3708.7,3708.0,301.31928067]
[1733000598149,1.5954,3708.3,3708.0,301.31928067]
[1733000598264,4.29211,3708.3,3708.0,301.31928067]
[1733000598460,2.69679,3708.1,3708.0,301.31928067]
[1733000598656,2.69417493,3708.1,3708.0,301.31928067]
[1733000598902,4.990972,3708.3,3708.0,301.31928067]
[1733000599074,4.29211,3708.3,3708.0,301.31928067]
[1733000599589,2.69679,3708.1,3708.0,301.31928067]
[1733000601489,4.83870522,3708.3,3708.0,301.31928067]
[1733000601801,0.55,3708.2,3708.0,301.31928067]
[1733000602192,2.69679,3708.1,3708.0,301.31928067]
[1733000602394,3.24673,3708.2,3708.0,301.31928067]
[1733000602918,3.24652,3708.5,3708.0,301.31928067]
[1733000603482,2.69652,3708.5,3708.0,301.31928067]
[1733000604776,0.55,3708.5,3708.0,301.31928067]
[1733000604976,2.69675,3708.2,3708.0,301.31928067]
[1733000607533,2.69679,3708.1,3708.0,301.31928067]
[1733000609193,4.902544,3708.1,3708.0,301.31928067]
[1733000612314,5.452544,3708.1,3708.0,300.49705435]
[1733000614638,5.99180544,3708.1,3708.0,300.49705435]
[1733000615699,5.99180544,3708.1,3708.0,300.06067912]
[1733000616150,8.99180544,3708.1,3708.0,300.06067912]
[1733000617166,1.32172305,3708.7,3708.0,300.06067912]
[1733000617167,1.22172305,3708.7,3708.0,300.06067912]
[1733000617362,1.22172305,3708.7,3708.3,2.69658]
[1733000617518,2.69646,3708.6,3708.1,1.6354]
[1733000617859,2.69652,3708.5,3708.1,1.6354]
[1733000618365,1.603,3708.4,3708.0,300.06067912]
[1733000618529,1.22172305,3708.7,3708.0,300.06067912]
[1733000618530,2.69657,3708.5,3708.0,300.06067912]
[1733000618736,2.69665,3708.3,3708.0,300.06067912]
[1733000620026,2.6967,3708.3,3708.0,300.06067912]
[1733000620565,2.69674,3708.2,3708.0,300.06067912]
[1733000620725,0.55,3708.6,3708.0,300.06067912]
[1733000620925,2.69679,3708.1,3708.0,300.06067912]
[1733000621566,4.22489,3708.1,3708.0,300.06067912]
[1733000623122,2.69679,3708.1,3708.0,300.06067912]
[1733000626968,4.22489,3708.1,3708.0,300.06067912]
[1733000627171,4.77489,3708.1,3708.0,300.06067912]
[1733000627477,5.57684537,3708.1,3708.0,300.06067912]
[1733000628533,5.57684537,3708.1,3708.0,299.47884549]
[1733000629667,2.69679,3708.1,3708.0,299.47884549]
[1733000629970,1.75359918,3708.7,3708.2,1.5201]
[1733000630175,1.75359918,3708.7,3708.0,299.24230269]
[1733000630334,4.45000918,3708.7,3708.0,298.91566943]
[1733000630834,4.45000918,3708.7,3708.0,301.61253943]
[1733000632275,1.75359918,3708.7,3708.0,298.91566943]
[1733000632449,2.69653,3708.5,3708.0,298.91566943]
[1733000632662,4.44999918,3708.7,3708.0,298.91566943]
[1733000632867,4.44999918,3708.7,3708.0,301.61252943]
[1733000633584,1.75359918,3708.7,3708.0,301.61252943]
[1733000633948,1.5281,3709.5,3708.3,1.5201]
[1733000634153,0.25240464,3709.4,3708.5,2.69649]
[1733000635045,0.25240464,3709.4,3708.8,2.69627]
[1733000635243,2.6958,3709.5,3708.7,1.5201]
[1733000635441,3.8225005,3709.5,3708.7,1.5201]
[1733000635697,0.54121297,3709.4,3708.7,1.5201]
[1733000635856,0.54121297,3709.4,3708.7,4.21646]
[1733000636188,3.0,3709.6,3708.8,2.69627]
[1733000636870,0.53843331,3709.5,3708.8,2.69627]
[1733000637189,1.5663,3709.4,3708.8,2.69627]
[1733000638942,2.69594,3709.3,3708.7,1.6561]
[1733000639502,0.54919283,3709.4,3708.7,4.35245]
[1733000639684,0.53843331,3709.5,3709.4,2.69585]
[1733000639857,0.53843331,3709.5,3709.4,4.35195]
[1733000640052,2.69533,3710.2,3709.4,4.35195]
[1733000640257,4.68329201,3710.4,3709.5,2.69572]
[1733000640499,4.68329201,3710.4,3709.6,2.69569]
[1733000640500,0.5481455,3710.1,3709.6,2.69569]
[1733000641161,0.5481455,3710.1,3709.4,1.6561]
[1733000641858,0.5481455,3710.1,3709.5,2.69571]
[1733000642057,0.5481455,3710.1,3709.4,1.6561]
[1733000642253,3.2435455,3710.1,3709.4,1.6561]
[1733000642553,3.2435455,3710.1,3709.1,2.69605]
[1733000642554,1.5716,3709.9,3709.1,4.27645]
[1733000642779,1.26456358,3710.0,3709.3,2.6959]
[1733000643255,1.26456358,3710.0,3709.1,1.5804]
[1733000643462,1.26456358,3710.0,3709.5,2.69577]
[1733000643986,1.26456358,3710.0,3709.7,2.69562]
[1733000644185,1.26456358,3710.0,3709.6,1.5804]
[1733000644386,1.26456358,3710.0,3709.9,2.69549]
[1733000644586,2.69479,3710.9,3710.1,2.69532]
[1733000644773,2.69479,3710.9,3710.2,2.69524]
[1733000644972,1.5716,3711.0,3710.3,2.69519]
[1733000645189,4.26634,3711.0,3710.3,2.69519]
[1733000645503,0.52799119,3710.8,3710.2,2.69521]
[1733000645878,0.52799119,3710.8,3709.9,1.5804]
[1733000645879,0.52799119,3710.8,3710.4,2.69512]
[1733000646183,4.98392567,3711.5,3709.6,2.85368]
[1733000646184,3.99297457,3711.5,3710.7,2.69488]
[1733000646386,3.99297457,3711.5,3709.6,0.15804]
[1733000646387,1.5306,3711.3,3710.0,1.6259]
[1733000646586,2.69465,3711.1,3710.1,2.69533]
[1733000646787,2.69483,3710.8,3710.1,2.69533]
[1733000647098,2.69498,3710.7,3710.0,1.6259]
[1733000647401,2.695,3710.6,3710.0,1.6259]
[1733000647605,2.69483,3710.8,3710.0,1.6259]
[1733000647764,0.422525,3711.0,3709.5,2.69573]
[1733000647765,1.5306,3710.7,3709.6,1.6259]
[1733000647966,2.6951,3710.5,3709.7,2.69562]
[1733000648172,0.15306,3710.6,3709.6,1.6259]
[1733000648398,2.69522,3710.3,3709.6,1.6259]
[1733000650377,0.15306,3710.6,3709.6,1.6259]
[1733000650567,2.69541,3710.1,3709.6,1.6259]
[1733000651099,2.69542,3710.0,3709.6,1.6259]
[1733000651509,2.69569,3709.7,3709.2,1.6259]
[1733000652176,2.965082,3709.9,3709.2,1.6259]
[1733000652388,2.69557,3709.8,3709.2,1.6259]
[1733000653179,2.69571,3709.6,3709.2,1.6259]
[1733000653362,0.269542,3709.9,3709.2,1.6259]
[1733000653702,2.07887174,3710.0,3708.4,5.69656]
[1733000653703,0.23484137,3709.8,3708.5,1.6259]
[1733000653905,2.93041137,3709.8,3708.5,1.6259]
[1733000654077,2.93041137,3709.8,3709.2,1.6259]
[1733000654615,0.23484137,3709.8,3709.2,4.32188]
[1733000655086,2.93041137,3709.8,3709.2,4.32188]
[1733000655822,2.93041137,3709.8,3709.2,4.32187]
[1733000656671,2.69557,3709.8,3709.2,4.32187]
[1733000656880,3.24369174,3710.0,3709.2,4.32187]
[1733000657124,3.24369174,3710.0,3709.3,2.69592]
[1733000657914,0.54827174,3710.0,3709.2,1.6259]
[1733000658097,2.69555,3709.9,3709.2,1.6259]